bitfinex/quotes_BTCUSD_20241004
["timestamp","ask_amount","ask_price","bid_price","bid_amount"]
[1728057294728,0.161569,61893.0,61892.0,0.00164]
[1728057294945,0.27959697,61893.0,61892.0,0.00164]
[1728057296235,0.27959697,61893.0,61892.0,0.00664]
[1728057296664,0.27959697,61893.0,61892.0,0.00864]
[1728057297312,0.30492971,61893.0,61892.0,0.00864]
[1728057298219,0.27959697,61893.0,61892.0,0.00864]
[1728057300502,0.0764,61893.0,61892.0,0.00864]
[1728057300936,0.0764,61893.0,61892.0,0.170211]
[1728057301650,0.02615383,61896.0,61895.0,0.161563]
[1728057301873,0.00082,61896.0,61895.0,0.161563]
[1728057302319,0.00082,61896.0,61893.0,0.484702]
[1728057302538,0.00082,61896.0,61895.0,0.161563]
[1728057302759,0.00082,61896.0,61895.0,0.002]
[1728057303432,0.00082,61896.0,61895.0,0.163563]
[1728057303876,0.00082,61896.0,61895.0,0.002]
[1728057304087,0.162381,61896.0,61895.0,0.002]
[1728057304344,0.00082,61896.0,61895.0,0.163563]
[1728057304563,0.00082,61896.0,61895.0,0.20862022]
[1728057304774,0.00082,61896.0,61895.0,0.04705722]
[1728057305006,0.162381,61896.0,61895.0,0.05305722]
[1728057305260,0.162381,61896.0,61895.0,0.05305664]
[1728057305504,0.37553681,61896.0,61895.0,0.05305664]
[1728057305955,0.58407321,61896.0,61895.0,0.006]
[1728057306200,0.58407321,61896.0,61895.0,0.009]
[1728057306433,0.58407321,61896.0,61895.0,0.02708906]
[1728057306655,0.58407321,61896.0,61895.0,0.02408906]
[1728057306901,0.39624924,61896.0,61895.0,0.02408906]
[1728057307573,0.39624924,61896.0,61895.0,0.01808906]
[1728057307796,0.35501284,61896.0,61895.0,0.02008906]
[1728057308040,0.35501284,61896.0,61895.0,0.04706397]
[1728057308270,0.16812,61896.0,61895.0,0.04706397]
[1728057308712,0.329681,61896.0,61895.0,0.04706397]
[1728057308933,0.329681,61896.0,61895.0,0.04806397]
[1728057309152,0.16812,61896.0,61895.0,0.04806397]
[1728057309370,0.16812,61896.0,61895.0,0.05206397]
[1728057309618,0.07722,61896.0,61895.0,0.05206397]
[1728057309838,0.07722,61896.0,61895.0,0.05406397]
[1728057310328,0.07722,61896.0,61895.0,0.21562697]
[1728057311209,0.00082,61896.0,61895.0,0.21562697]
[1728057312509,0.00082,61896.0,61895.0,0.214072]
[1728057312770,0.00082,61896.0,61895.0,0.220072]
[1728057313298,0.00082,61896.0,61895.0,0.215072]
[1728057313730,0.00082,61896.0,61895.0,0.22018021]
[1728057314495,0.00082,61896.0,61895.0,0.22918021]
[1728057315050,0.00082,61896.0,61895.0,0.63573316]
[1728057315336,0.00082,61896.0,61895.0,0.49236692]
[1728057315576,0.0002,61899.0,61898.0,0.03448]
[1728057315875,0.08419247,61900.0,61899.0,0.268553]
[1728057316108,0.01022178,61900.0,61899.0,0.57599376]
[1728057316368,0.00975,61918.0,61899.0,0.57599376]
[1728057316369,0.00975,61918.0,61917.0,0.338406]
[1728057316624,0.00975,61918.0,61917.0,0.52001399]
[1728057316883,0.02514333,61918.0,61917.0,0.52001399]
[1728057317675,0.0160811,61928.0,61924.0,0.105]
[1728057317677,0.0160811,61928.0,61927.0,0.26648]
[1728057317937,0.0160811,61928.0,61927.0,0.45430397]
[1728057318189,0.0160811,61928.0,61927.0,0.64997068]
[1728057318548,0.00453984,61928.0,61927.0,0.61749068]
[1728057318694,0.00453984,61928.0,61927.0,0.42466671]
[1728057319407,0.00453984,61928.0,61927.0,0.43866671]
[1728057319620,0.00453984,61928.0,61927.0,0.45266671]
[1728057320159,0.00453984,61928.0,61927.0,0.17548]
[1728057320376,0.00453984,61928.0,61927.0,0.18848]
[1728057320904,0.00453984,61928.0,61927.0,0.013]
[1728057321128,0.00453984,61928.0,61927.0,0.027]
[1728057321352,0.00453984,61928.0,61927.0,0.17448]
[1728057321605,0.00453984,61928.0,61925.0,0.161485]
[1728057321884,0.00453984,61928.0,61927.0,0.014]
[1728057322142,0.00453984,61928.0,61927.0,0.33666671]
[1728057322401,0.00453984,61928.0,61927.0,0.32466671]
[1728057322625,0.00453984,61928.0,61927.0,0.43866671]
[1728057322852,0.00453984,61928.0,61927.0,0.44366671]
[1728057323303,0.00453984,61928.0,61927.0,0.43866671]
[1728057323545,0.00453984,61928.0,61927.0,0.45166671]
[1728057323785,0.00453984,61928.0,61927.0,0.27448]
[1728057324001,0.00453984,61928.0,61927.0,0.28848]
[1728057324686,0.00453984,61928.0,61927.0,0.18948]
[1728057324939,0.00453984,61928.0,61927.0,0.16148]
[1728057325177,0.00453984,61928.0,61927.0,0.18948]
[1728057325628,0.00453984,61928.0,61927.0,0.014]
[1728057325869,0.05285629,61928.0,61927.0,0.031]
[1728057326320,0.05285629,61928.0,61927.0,0.19248]
[1728057326586,0.05285629,61928.0,61927.0,0.18348]
[1728057326859,0.03794929,61928.0,61927.0,0.19248]
[1728057327150,0.02985629,61928.0,61927.0,0.17048]
[1728057327460,0.00535984,61928.0,61927.0,0.52949068]
[1728057327684,0.00535984,61928.0,61927.0,0.64023948]
[1728057327976,0.00535984,61928.0,61927.0,0.73423474]
[1728057328260,0.00535984,61928.0,61927.0,0.76771474]
[1728057328777,0.00535984,61928.0,61927.0,0.73696594]
[1728057329048,0.00535984,61928.0,61927.0,0.30711053]
[1728057329579,0.00535984,61928.0,61927.0,0.29411053]
[1728057329831,0.00535984,61928.0,61927.0,0.30811053]
[1728057330296,0.00535984,61928.0,61927.0,0.29511053]
[1728057330548,0.00535984,61928.0,61927.0,0.28948]
[1728057330799,0.00535984,61928.0,61927.0,0.27548]
[1728057331288,0.00535984,61928.0,61927.0,0.27448]
[1728057332015,0.00535984,61928.0,61927.0,0.26148]
[1728057332512,0.00535984,61928.0,61927.0,0.023]
[1728057332757,0.00535984,61928.0,61927.0,0.18448]
[1728057332996,0.00535984,61928.0,61927.0,0.17148]
[1728057333232,0.00535984,61928.0,61927.0,0.18448]
[1728057334201,0.00535984,61928.0,61927.0,0.17448]
[1728057334208,0.00535984,61928.0,61927.0,0.18748]
[1728057334434,0.00535984,61928.0,61927.0,0.17448]
[1728057334660,0.00535984,61928.0,61927.0,0.026]
[1728057334893,0.00535984,61928.0,61927.0,0.18748]
[1728057335118,0.00535984,61928.0,61927.0,0.17448]
[1728057335608,0.00535984,61928.0,61927.0,0.18748]
[1728057336051,0.00535984,61928.0,61927.0,0.193952]
[1728057341521,0.00535984,61928.0,61927.0,0.195592]
[1728057343346,0.00535984,61928.0,61927.0,0.295592]
[1728057346518,0.00535984,61928.0,61927.0,0.195592]
[1728057346773,0.02029976,61928.0,61927.0,0.195592]
[1728057349252,0.00535984,61928.0,61927.0,0.295592]
[1728057350514,0.00535984,61928.0,61927.0,0.64537243]
[1728057350782,0.00535984,61928.0,61927.0,0.4640016]
[1728057351027,0.000819,61930.0,61927.0,0.3025216]
[1728057351261,0.000819,61930.0,61928.0,0.42466371]
[1728057353035,0.00975,61938.0,61937.0,0.34804772]
[1728057353326,0.00975,61938.0,61937.0,0.64371443]
[1728057353526,0.00975,61938.0,61937.0,0.78198801]
[1728057353767,0.00975,61938.0,61937.0,0.261454]
[1728057354288,0.00975,61938.0,61937.0,0.161454]
[1728057354522,0.00975,61938.0,61937.0,0.175454]
[1728057354764,0.00975,61938.0,61937.0,0.161454]
[1728057355005,0.00975,61938.0,61937.0,0.16656023]
[1728057355245,0.00975,61938.0,61937.0,0.18056023]
[1728057355787,0.00975,61938.0,61937.0,0.19156023]
[1728057356790,0.00975,61938.0,61937.0,0.17756023]
[1728057357019,0.00975,61938.0,61937.0,0.18956023]
[1728057357254,0.00975,61938.0,61937.0,0.17856023]
[1728057357496,0.00975,61938.0,61937.0,0.17756023]
[1728057357754,0.00975,61938.0,61937.0,0.17956023]
[1728057358204,0.00975,61938.0,61937.0,0.19256023]
[1728057358443,0.00975,61938.0,61937.0,0.54234066]
[1728057358678,0.00975,61938.0,61937.0,0.45574694]
[1728057358937,0.00975,61938.0,61937.0,0.44274694]
[1728057359169,0.00975,61938.0,61937.0,0.27956023]
[1728057359966,0.00975,61938.0,61937.0,0.26656023]
[1728057360187,0.00975,61938.0,61937.0,0.27956023]
[1728057360422,0.00975,61938.0,61937.0,0.29256023]
[1728057360635,0.00975,61938.0,61937.0,0.61634066]
[1728057360851,0.00975,61938.0,61937.0,0.44374694]
[1728057361080,0.00975,61938.0,61937.0,0.45774694]
[1728057361304,0.00975,61938.0,61937.0,0.28056023]
[1728057361519,0.00975,61938.0,61937.0,0.44374694]
[1728057361761,0.00975,61938.0,61937.0,0.45774694]
[1728057361986,0.00975,61938.0,61937.0,0.29456023]
[1728057362442,0.00975,61938.0,61937.0,0.28056023]
[1728057362897,0.00975,61938.0,61937.0,0.26656023]
[1728057363132,0.00975,61938.0,61937.0,0.42974694]
[1728057363363,0.00975,61938.0,61937.0,0.44374694]
[1728057364315,0.00975,61938.0,61937.0,0.45774694]
[1728057365421,0.000769,61948.0,61947.0,0.161428]
[1728057366147,0.01550555,61948.0,61947.0,0.161428]
[1728057366356,0.03850555,61948.0,61947.0,0.161428]
[1728057366575,0.03850555,61948.0,61939.0,0.1]
[1728057366576,0.023,61947.0,61939.0,0.1]
[1728057366799,0.01473655,61946.0,61945.0,0.161433]
[1728057367503,0.000769,61948.0,61943.0,0.645751]
[1728057367504,0.000769,61948.0,61947.0,0.161428]
[1728057367721,0.000769,61948.0,61947.0,0.164428]
[1728057367722,0.01549455,61948.0,61947.0,0.164428]
[1728057367979,0.01549455,61948.0,61947.0,0.161428]
[1728057369982,0.01549455,61948.0,61947.0,0.181428]
[1728057370666,0.01549455,61948.0,61947.0,0.42479424]
[1728057370892,0.000769,61948.0,61947.0,0.181428]
[1728057371116,0.000769,61948.0,61947.0,0.18657014]
[1728057371405,0.000769,61948.0,61947.0,0.2082767]
[1728057372646,0.000769,61948.0,61947.0,0.18657014]
[1728057374473,0.000769,61948.0,61947.0,0.63840485]
[1728057374694,0.000769,61948.0,61947.0,0.39503861]
[1728057375421,0.000769,61948.0,61947.0,0.93397156]
[1728057375658,0.01057,61958.0,61947.0,0.93397156]
[1728057375659,0.01057,61958.0,61957.0,0.44799572]
[1728057375895,0.01057,61958.0,61957.0,0.61118243]
[1728057376124,0.01057,61958.0,61957.0,0.63390576]
[1728057376845,0.01057,61958.0,61957.0,0.44731204]
[1728057377079,0.01057,61958.0,61957.0,0.63390576]
[1728057377315,0.00021427,61969.0,61968.0,0.161373]
[1728057377782,0.014615,61969.0,61968.0,0.161373]
[1728057378002,0.00021427,61969.0,61968.0,0.161373]
[1728057378224,0.01461489,61969.0,61968.0,0.161373]
[1728057378453,0.01461489,61969.0,61957.0,0.114]
[1728057378678,0.03740062,61968.0,61967.0,0.161376]
[1728057378918,0.03740062,61968.0,61958.0,0.02262604]
[1728057378919,0.03740062,61968.0,61959.0,0.02262604]
[1728057379337,0.03740062,61968.0,61962.0,0.322776]
[1728057379344,0.03740062,61968.0,61958.0,0.1]
[1728057379345,0.023,61968.0,61967.0,0.161376]
[1728057379578,0.00021427,61969.0,61968.0,0.161373]
[1728057380035,0.01471625,61969.0,61968.0,0.161373]
[1728057380718,0.00021427,61969.0,61968.0,0.161373]
[1728057380940,0.00021427,61969.0,61968.0,0.167373]
[1728057381174,0.00021427,61969.0,61968.0,0.172373]
[1728057382188,0.02321427,61969.0,61968.0,0.011]
[1728057382416,0.02321427,61969.0,61968.0,0.172373]
[1728057382890,0.00021427,61969.0,61968.0,0.161373]
[1728057383135,0.00021427,61969.0,61968.0,0.164373]
[1728057383136,0.02336368,61969.0,61968.0,0.164373]
[1728057383598,0.04866405,61969.0,61968.0,0.161373]
[1728057383835,0.04966405,61969.0,61968.0,0.161373]
[1728057384080,0.04866405,61969.0,61968.0,0.161373]
[1728057384523,0.04866405,61969.0,61968.0,0.166373]
[1728057385200,0.380478,61969.0,61968.0,0.005]
[1728057385479,0.69626372,61969.0,61968.0,0.011]
[1728057385948,0.619749,61969.0,61968.0,0.005]
[1728057386214,0.322749,61968.0,61956.0,0.24336624]
[1728057386432,0.456378,61969.0,61956.0,0.24336624]
[1728057386433,0.023,61963.0,61956.0,0.24336624]
[1728057386655,0.023,61959.0,61956.0,0.24336624]
[1728057387164,0.02530364,61959.0,61953.0,0.16141]
[1728057387380,0.02530364,61959.0,61949.0,0.56620924]
[1728057387594,0.02530364,61959.0,61954.0,0.161409]
[1728057387815,0.023,61964.0,61951.0,0.322832]
[1728057388073,0.000865,61959.0,61950.0,0.24336624]
[1728057388310,0.000865,61959.0,61952.0,0.161414]
[1728057388558,0.000865,61959.0,61951.0,0.322835]
[1728057388767,0.000865,61959.0,61956.0,0.002]
[1728057389198,0.000865,61959.0,61955.0,0.161405]
[1728057389618,0.000865,61959.0,61953.0,0.162411]
[1728057389863,0.000865,61959.0,61952.0,0.002]
[1728057390082,0.000865,61959.0,61954.0,0.161409]
[1728057390302,0.000865,61959.0,61956.0,0.001]
[1728057390527,0.000865,61959.0,61955.0,0.163406]
[1728057390775,0.000865,61959.0,61956.0,0.18237585]
[1728057391038,0.04917007,61959.0,61958.0,0.161399]
[1728057391250,0.04917007,61959.0,61955.0,0.002]
[1728057391251,0.023,61958.0,61955.0,0.002]
[1728057391481,0.31797671,61957.0,61956.0,0.02102818]
[1728057391739,0.31797671,61957.0,61948.0,0.1]
[1728057391740,0.31797671,61957.0,61951.0,0.24336624]
[1728057391960,0.31797671,61957.0,61952.0,0.02304407]
[1728057392187,0.31797671,61957.0,61953.0,0.02104407]
[1728057392469,0.31797671,61957.0,61950.0,0.16142]
[1728057392697,0.13138299,61957.0,61956.0,0.003]
[1728057393148,0.13138299,61957.0,61954.0,0.001]
[1728057393438,0.13138299,61957.0,61955.0,0.02108495]
[1728057393670,0.13138299,61957.0,61953.0,0.003]
[1728057393898,0.13138299,61957.0,61954.0,0.02108761]
[1728057394121,0.13138299,61957.0,61953.0,0.003]
[1728057394348,0.13138299,61957.0,61956.0,0.003]
[1728057394621,0.13138299,61957.0,61953.0,0.003]
[1728057394849,0.0751,61957.0,61956.0,0.161404]
[1728057395094,0.04917072,61959.0,61958.0,0.161399]
[1728057395358,0.04917072,61959.0,61958.0,0.18244241]
[1728057396516,0.04917072,61959.0,61958.0,0.02439786]
[1728057396747,0.04917072,61959.0,61958.0,0.18579686]
[1728057397536,0.02617072,61959.0,61958.0,0.18579686]
[1728057397754,0.44658693,61959.0,61958.0,0.003]
[1728057398220,0.6596142,61959.0,61958.0,0.003]
[1728057398707,0.4982172,61959.0,61958.0,0.001]
[1728057398943,0.42128121,61959.0,61958.0,0.001]
[1728057399176,0.42128121,61959.0,61950.0,0.24336624]
[1728057399177,0.023,61958.0,61955.0,0.161405]
[1728057399418,0.023,61956.0,61955.0,0.161405]
[1728057399679,0.000865,61959.0,61958.0,0.161399]
[1728057401368,0.000865,61959.0,61953.0,0.322823]
[1728057401604,0.02616934,61959.0,61953.0,0.322823]
[1728057401861,0.02616934,61959.0,61958.0,0.007]
[1728057402113,0.02616934,61959.0,61958.0,0.008]
[1728057402432,0.02616934,61959.0,61958.0,0.007]
[1728057402663,0.02616934,61959.0,61956.0,0.161404]
[1728057402926,0.02616934,61959.0,61954.0,0.161409]
[1728057403179,0.02616934,61959.0,61955.0,0.161406]
[1728057403406,0.02616934,61959.0,61958.0,0.006]
[1728057403651,0.02616934,61959.0,61953.0,0.007]
[1728057403864,0.02616934,61959.0,61956.0,0.004]
[1728057403865,0.02698834,61959.0,61956.0,0.004]
[1728057404085,0.02698834,61959.0,61953.0,0.322825]
[1728057404310,0.04998834,61959.0,61958.0,0.004]
[1728057404759,0.04998834,61959.0,61957.0,0.161401]
[1728057405022,0.04998834,61959.0,61952.0,0.24500424]
[1728057405267,0.04998834,61959.0,61956.0,0.005]
[1728057405484,0.04998834,61959.0,61955.0,0.165407]
[1728057405709,0.04998834,61959.0,61953.0,0.322824]
[1728057405930,0.04998834,61959.0,61958.0,0.005]
[1728057406949,0.04998834,61959.0,61958.0,0.166399]
[1728057407223,0.04998834,61959.0,61955.0,0.322813]
[1728057407224,0.04998834,61959.0,61957.0,0.161401]
[1728057407487,0.04998834,61959.0,61958.0,0.004]
[1728057408259,0.024684,61959.0,61958.0,0.009]
[1728057408727,0.024684,61959.0,61958.0,0.166399]
[1728057409441,0.024684,61959.0,61958.0,0.170399]
[1728057411633,0.04998857,61959.0,61958.0,0.170399]
[1728057412132,0.04998857,61959.0,61958.0,0.009]
[1728057412677,0.04998857,61959.0,61958.0,0.170399]
[1728057412678,0.024684,61959.0,61958.0,0.170399]
[1728057413354,0.024684,61959.0,61957.0,0.161401]
[1728057413600,0.023,61958.0,61957.0,0.161401]
[1728057415081,0.023,61958.0,61957.0,0.161402]
[1728057415317,0.023,61958.0,61957.0,0.168402]
[1728057415555,0.04830494,61958.0,61957.0,0.007]
[1728057416299,0.04830494,61958.0,61957.0,0.168402]
[1728057416650,0.04830494,61958.0,61957.0,0.174402]
[1728057416874,0.04830494,61958.0,61957.0,0.013]
[1728057417322,0.04830494,61958.0,61957.0,0.174402]
[1728057418171,0.023,61958.0,61957.0,0.174402]
[1728057422450,0.001684,61959.0,61957.0,0.013]
[1728057422706,0.001684,61959.0,61958.0,0.76695896]
[1728057422933,0.001684,61959.0,61958.0,0.68677943]
[1728057423392,0.001684,61959.0,61958.0,0.38525789]
[1728057423628,0.001684,61959.0,61958.0,0.261399]
[1728057423863,0.001684,61959.0,61958.0,0.275399]
[1728057424617,0.001684,61959.0,61958.0,0.289399]
[1728057425540,0.001684,61959.0,61958.0,0.175399]
[1728057425782,0.024684,61959.0,61958.0,0.028]
[1728057426017,0.024684,61959.0,61958.0,0.014]
[1728057426248,0.023,61958.0,61957.0,0.161402]
[1728057426943,0.04830412,61958.0,61957.0,0.161402]
[1728057427633,0.023,61958.0,61957.0,0.161402]
[1728057427869,0.023,61958.0,61957.0,0.171402]
[1728057428366,0.001684,61959.0,61958.0,0.161399]
[1728057429300,0.001684,61959.0,61958.0,0.44799272]
[1728057429570,0.01021437,61970.0,61969.0,0.161371]
[1728057430488,0.01021437,61970.0,61969.0,0.59985771]
[1728057430720,0.05061718,61978.0,61971.0,0.161365]
[1728057430983,0.05061718,61978.0,61977.0,0.44794372]
[1728057431229,0.05061718,61978.0,61977.0,0.44294372]
[1728057431458,0.05061718,61978.0,61977.0,0.60613043]
[1728057432398,0.05061718,61978.0,61977.0,0.62013043]
[1728057433103,0.05061718,61978.0,61977.0,0.014]
[1728057433327,0.07361718,61978.0,61977.0,0.014]
[1728057433606,0.07361718,61978.0,61977.0,0.18935]
[1728057434112,0.07361718,61978.0,61977.0,0.014]
[1728057434392,0.07361718,61978.0,61977.0,0.17535]
[1728057434638,0.05061718,61978.0,61977.0,0.18435]
[1728057435880,0.05061718,61978.0,61977.0,0.16135]
[1728057436153,0.05061718,61978.0,61977.0,0.17835]
[1728057436648,0.05061718,61978.0,61977.0,0.16135]
[1728057436927,0.05061718,61978.0,61977.0,0.18135]
[1728057437236,0.05061718,61978.0,61977.0,0.36794372]
[1728057437479,0.05061718,61978.0,61977.0,0.75896821]
[1728057437710,0.05061718,61978.0,61977.0,0.79491993]
[1728057437962,0.05061718,61978.0,61977.0,0.83534053]
[1728057438206,0.05061718,61978.0,61977.0,0.79491993]
[1728057438470,0.05061718,61978.0,61977.0,0.54883322]
[1728057438674,0.05061718,61978.0,61977.0,0.3522395]
[1728057438918,0.05061718,61978.0,61977.0,0.2422395]
[1728057439161,0.05061718,61978.0,61977.0,0.21830172]
[1728057439426,0.05061718,61978.0,61977.0,0.18235]
[1728057439678,0.05061718,61978.0,61977.0,0.16135]
[1728057439916,0.05061718,61978.0,61977.0,0.63976928]
[1728057440175,0.05061718,61978.0,61977.0,0.63076928]
[1728057440626,0.05061718,61978.0,61977.0,0.62076928]
[1728057441337,0.00342718,61978.0,61977.0,0.86413552]
[1728057441580,0.00342718,61978.0,61977.0,0.62276928]
[1728057441815,0.00342718,61978.0,61977.0,0.63376928]
[1728057442055,0.00342718,61978.0,61977.0,0.64576928]
[1728057442294,0.00342718,61978.0,61977.0,0.63640928]
[1728057442528,0.00342718,61978.0,61977.0,0.50712928]
[1728057442529,0.00424718,61978.0,61977.0,0.50712928]
[1728057442760,0.00424718,61978.0,61977.0,0.53512928]
[1728057442995,0.00424718,61978.0,61977.0,0.52112928]
[1728057443240,0.00424718,61978.0,61977.0,0.73120928]
[1728057443480,0.00424718,61978.0,61977.0,0.7461572]
[1728057443738,0.00424718,61978.0,61977.0,0.7457584]
[1728057443964,0.00424718,61978.0,61977.0,0.72060713]
[1728057444872,0.00424718,61978.0,61977.0,0.59102713]
[1728057445097,0.00424718,61978.0,61977.0,0.51052713]
[1728057445569,0.00428778,61978.0,61977.0,0.52452713]
[1728057445794,0.00428778,61978.0,61977.0,0.82230419]
[1728057446232,0.00428778,61978.0,61977.0,0.80830419]
[1728057446479,0.00428778,61978.0,61977.0,0.82230419]
[1728057446710,0.00428778,61978.0,61977.0,0.83630419]
[1728057446939,0.00428778,61978.0,61977.0,0.80830419]
[1728057447166,0.00428778,61978.0,61977.0,0.83630419]
[1728057447667,0.00428778,61978.0,61977.0,0.36134042]
[1728057448343,0.00428778,61978.0,61977.0,0.34734042]
[1728057448578,0.00428778,61978.0,61977.0,0.33334042]
[1728057448822,0.00428778,61978.0,61977.0,0.31624853]
[1728057449059,0.00428778,61978.0,61977.0,0.27699]
[1728057449291,0.00428778,61978.0,61977.0,0.17699]
[1728057449509,0.00428778,61978.0,61977.0,0.16299]
[1728057449734,0.00428778,61978.0,61977.0,0.17699]
[1728057450022,0.00428778,61978.0,61977.0,0.18599]
[1728057450289,0.00428778,61978.0,61977.0,0.1882539]
[1728057450512,0.00428778,61978.0,61977.0,0.0269039]
[1728057450513,0.02728778,61978.0,61977.0,0.0269039]
[1728057450742,0.02728778,61978.0,61977.0,0.16299]
[1728057451418,0.00428778,61978.0,61977.0,0.16299]
[1728057451661,0.00428778,61978.0,61977.0,0.17199]
[1728057451892,0.00428778,61978.0,61977.0,0.20625446]
[1728057452119,0.00428778,61978.0,61977.0,0.18825446]
[1728057452342,0.00428778,61978.0,61977.0,0.25309639]
[1728057452814,0.00428778,61978.0,61977.0,0.23309639]
[1728057453091,0.00428778,61978.0,61977.0,0.24509639]
[1728057453334,0.00428778,61978.0,61977.0,0.19223515]
[1728057453580,0.00428778,61978.0,61977.0,0.26224724]
[1728057453817,0.00428778,61978.0,61977.0,0.10089724]
[1728057454052,0.00428778,61978.0,61977.0,0.19223515]
[1728057454756,0.00428778,61978.0,61977.0,0.16299]
[1728057454980,0.00428778,61978.0,61977.0,0.01264]
[1728057455232,0.00428778,61978.0,61977.0,0.18499]
[1728057455468,0.00428778,61978.0,61977.0,0.19925468]
[1728057455698,0.00428778,61978.0,61977.0,0.17499]
[1728057455928,0.00428778,61978.0,61977.0,0.21225469]
[1728057456152,0.00428778,61978.0,61977.0,0.18699]
[1728057456420,0.13853633,61978.0,61977.0,0.00164]
[1728057456644,0.13853633,61978.0,61977.0,0.01264]
[1728057456888,0.05783633,61978.0,61977.0,0.02364]
[1728057457128,0.00428778,61978.0,61977.0,0.22931999]
[1728057457843,0.00428778,61978.0,61977.0,0.21831999]
[1728057458079,0.00428778,61978.0,61977.0,0.20731999]
[1728057458312,0.00428778,61978.0,61977.0,0.22431999]
[1728057458790,0.00428778,61978.0,61977.0,0.21531999]
[1728057459049,0.00428778,61978.0,61977.0,0.23331999]
[1728057459283,0.00428778,61978.0,61977.0,0.21731999]
[1728057459526,0.00428778,61978.0,61977.0,0.23776451]
[1728057459753,0.00428778,61978.0,61977.0,0.23876451]
[1728057461644,0.02728778,61978.0,61977.0,0.07641451]
[1728057461881,0.02728778,61978.0,61977.0,0.23976451]
[1728057462146,0.02728778,61978.0,61977.0,0.24776451]
[1728057462603,0.02728778,61978.0,61977.0,0.24823634]
[1728057463142,0.02728778,61978.0,61977.0,0.23823634]
[1728057463393,0.02728778,61978.0,61977.0,0.24723634]
[1728057463639,0.02728778,61978.0,61977.0,0.08588634]
[1728057463876,0.13933633,61978.0,61977.0,0.0638189]
[1728057464135,0.30068333,61978.0,61977.0,0.04122945]
[1728057464604,0.32395558,61978.0,61977.0,0.04122945]
[1728057464836,0.16260858,61978.0,61977.0,0.04122945]
[1728057465065,0.32395558,61978.0,61977.0,0.02422945]
[1728057465330,0.00628778,61978.0,61977.0,0.39388141]
[1728057465802,0.00628778,61978.0,61977.0,0.68016071]
[1728057466026,0.00828778,61978.0,61977.0,0.49388141]
[1728057466262,0.00528778,61978.0,61977.0,0.3306947]
[1728057466520,0.00528778,61978.0,61977.0,0.3316947]
[1728057466794,0.00428778,61978.0,61977.0,0.3358953]
[1728057467026,0.00428778,61978.0,61977.0,0.3822753]
[1728057467251,0.00428778,61978.0,61977.0,0.3498953]
[1728057467702,0.00428778,61978.0,61977.0,0.2498953]
[1728057468414,0.00428778,61978.0,61977.0,0.2358953]
[1728057468640,0.00428778,61978.0,61977.0,0.2598953]
[1728057469572,0.00428778,61978.0,61977.0,0.2358953]
[1728057469796,0.00428778,61978.0,61977.0,0.1961906]
[1728057470030,0.00428778,61978.0,61977.0,0.26356115]
[1728057471232,0.00428778,61978.0,61977.0,0.24956115]
[1728057471991,0.00428778,61978.0,61977.0,0.26356115]
[1728057472256,0.00428778,61978.0,61977.0,0.23556115]
[1728057472506,0.00428778,61978.0,61977.0,0.24956115]
[1728057472765,0.00428778,61978.0,61977.0,0.26356115]
[1728057473050,0.00428778,61978.0,61977.0,0.23556115]
[1728057473300,0.00428778,61978.0,61977.0,0.26356115]
[1728057473537,0.00428778,61978.0,61977.0,0.1821906]
[1728057473766,0.00428778,61978.0,61977.0,0.22711085]
[1728057474035,0.02728778,61978.0,61977.0,0.24957097]
[1728057474554,0.02728778,61978.0,61977.0,0.68503698]
[1728057474555,0.00428778,61978.0,61977.0,0.68503698]
[1728057474788,0.00428778,61978.0,61977.0,0.69903698]
[1728057475048,0.00428778,61978.0,61977.0,0.71303698]
[1728057475276,0.00428778,61978.0,61977.0,0.68503698]
[1728057475515,0.00428778,61978.0,61977.0,0.68903698]
[1728057475777,0.00428778,61978.0,61977.0,0.69403698]
[1728057475997,0.00428778,61978.0,61977.0,0.69003698]
[1728057476242,0.00428778,61978.0,61977.0,0.63165661]
[1728057476471,0.00428778,61978.0,61977.0,0.69922813]
[1728057476710,0.00428778,61978.0,61977.0,0.71322813]
[1728057477191,0.00428778,61978.0,61977.0,0.73852413]
[1728057477656,0.00428778,61978.0,61977.0,0.78666071]
[1728057477899,0.00428778,61978.0,61977.0,0.77266071]
[1728057478177,0.00428778,61978.0,61977.0,0.78666071]
[1728057478633,0.00428778,61978.0,61977.0,0.38905812]
[1728057479594,0.00428778,61978.0,61977.0,0.3214866]
[1728057479840,0.00428778,61978.0,61977.0,0.38910778]
[1728057480586,0.02728778,61978.0,61977.0,0.38910778]
[1728057481324,0.02728778,61978.0,61977.0,0.27510778]
[1728057481562,0.02728778,61978.0,61977.0,0.23581178]
[1728057481800,0.02728778,61978.0,61977.0,0.25781178]
[1728057481801,0.05057078,61978.0,61977.0,0.25781178]
[1728057482347,0.17321933,61978.0,61977.0,0.03518039]
[1728057482614,0.17321933,61978.0,61977.0,0.02409961]
[1728057482615,0.25613533,61978.0,61977.0,0.02409961]
[1728057482889,0.25613533,61978.0,61977.0,0.03609961]
[1728057483149,0.25613533,61978.0,61977.0,0.03009961]
[1728057483398,0.25613533,61978.0,61977.0,0.19144961]
[1728057483659,0.25613533,61978.0,61977.0,0.03009961]
[1728057484433,0.41748233,61978.0,61977.0,0.02409961]
[1728057484684,0.25613533,61978.0,61977.0,0.01064]
[1728057484932,0.22558678,61978.0,61977.0,0.19410122]
[1728057485157,0.13348678,61978.0,61977.0,0.19410122]
[1728057485669,0.05058678,61978.0,61977.0,0.19410122]
[1728057485908,0.05067893,61978.0,61977.0,0.19410122]
[1728057486146,0.05067893,61978.0,61977.0,0.19408943]
[1728057486390,0.05067893,61978.0,61977.0,0.19936356]
[1728057487117,0.05067893,61978.0,61977.0,0.19408943]
[1728057488095,0.08122748,61978.0,61977.0,0.03273943]
[1728057488585,0.08122748,61978.0,61977.0,0.01064]
[1728057489300,0.08122748,61978.0,61977.0,0.00164]
[1728057489301,0.32027448,61978.0,61977.0,0.00164]
[1728057489573,0.41757448,61978.0,61977.0,0.00164]
[1728057490098,0.41757448,61978.0,61971.0,0.24336624]
[1728057490099,0.161375,61968.0,61960.0,0.161393]
[1728057490347,0.161375,61968.0,61958.0,0.24500624]
[1728057490348,0.33817663,61967.0,61966.0,0.24336624]
[1728057490583,0.15189733,61967.0,61960.0,0.322786]
[1728057490844,0.15189733,61967.0,61958.0,0.24500624]
[1728057490845,0.023,61965.0,61961.0,0.32278]
[1728057491062,0.023,61963.0,61962.0,0.161387]
[1728057491300,0.04639115,61963.0,61962.0,0.161387]